Cogmind - Beta 13 @@@ ROGUE MODE // 2024.04.02 @ 22:35:07 Player: ILikeVoltron Result: Self-destructed Performance ------------- Evolutions (2) 1000 Regions Visited (4) 800 Robots Destroyed (87) 435 Value Destroyed (1977) 1977 Prototype IDs (6) 120 Alien Tech Used (0) 0 Bonus (35) 35 TOTAL SCORE: 4367 Bonus ------- High Alert Combat Kills 35 Cogmind --------- Core Integrity 424/550 Matter 189/300 Energy 6/100 System Corruption 4% Temperature Cool (8) Movement Rolling (110) Ox2 Location -8/Materials Parts ------- > --- POWER (1) -------- (None) > --- PROPULSION (4) --- Light Treads Light Treads Light Treads Wheel > --- UTILITY (4) ------ Large Storage Unit Improved Sensor Array Shield Generator > --- WEAPON (2) ------- Field Laser High-powered Shotgun > --- INVENTORY (15) --- Improved Ion Engine Light Deuterium Engine Light Treads Medium Matter Pod (100) Advanced Weight Redist. System Light Armor Plating Light Assault Rifle Heavy Assault Rifle Heavy Assault Rifle Heavy Assault Rifle Shotgun Minigun Grenade Launcher Grenade Launcher Mace Peak State ------------ > --- POWER ------------ Light Deuterium Engine > --- PROPULSION ------- Light Treads Light Treads Armored Wheel Flight Unit > --- UTILITY ---------- Large Storage Unit Visual Processing Unit Improved Sensor Array Improved Light Armor Plating > --- WEAPON ----------- Heavy Assault Rifle Shotgun > --- INVENTORY -------- Light Ion Engine Light Deuterium Engine Medium Matter Pod Improved Targeting Computer Shield Generator Field Laser Light Assault Rifle Heavy Assault Rifle Heavy Assault Rifle Grenade Launcher Grenade Launcher Grenade Launcher Mace [Rating: 23] Favorites ----------- Power Light Deuterium Engine Engine Light Deuterium Engine Propulsion Light Treads Treads Light Treads Leg Aluminum Leg Wheel Armored Wheel Flight Unit Flight Unit Utility Large Storage Unit Device Sensor Array Storage Large Storage Unit Processor Visual Processing Unit Protection Improved Light Armor Plating Weapon Heavy Assault Rifle Energy Gun Field Laser Energy Cannon Advanced Beam Cannon Ballistic Gun Heavy Assault Rifle Launcher Grenade Launcher Impact Weapon Mace Special Melee Weapon Datajack Build | -11 -10 -9 -9 -8 ------- Run | Yrd Mat Mat Min Mat Slots Evolved 4 | . . 2 . 2 Power . | . . . . . Propulsion 2 | . . 1 . 1 Utility 2 | . . 1 . 1 Weapon . | . . . . . Parts Attached 68 | . 14 31 4 19 Power 5 | . . 4 . 1 Engine 5 | . . 4 . 1 Core . | . . . . . Reactor . | . . . . . Propulsion 22 | . 5 8 2 7 Treads 16 | . 2 8 . 6 Leg 3 | . 3 . . . Wheel 2 | . . . 1 1 Hover . | . . . . . Flight 1 | . . . 1 . Utility 16 | . 3 8 . 5 Device 6 | . 1 2 . 3 Storage 1 | . 1 . . . Processor 5 | . 1 3 . 1 Hackware . | . . . . . Protection 4 | . . 3 . 1 Artifact . | . . . . . Weapon 25 | . 6 11 2 6 Energy Gun 4 | . 1 2 . 1 Energy Cannon 1 | . . 1 . . Ballistic Gun 11 | . 4 5 1 1 Ballistic Cannon . | . . . . . Launcher 4 | . . 2 . 2 Special Weapon . | . . . . . Impact Weapon 4 | . . 1 1 2 Slashing Weapon . | . . . . . Piercing Weapon . | . . . . . Special Melee Weapon 1 | . 1 . . . Unidentified Prototypes 4 | . . 3 . 1 Parts Lost 20 | . 1 7 2 10 Power 2 | . . . . 2 Propulsion 9 | . 1 3 2 3 Utility 5 | . . 1 . 4 Weapon 4 | . . 3 . 1 Highest Loss Streak 4 | . 1 4 2 4 To Critical Strikes 2 | . . 1 . 1 Average Slot Usage (%) 97 | . 96 99 98 90 Engine 11 | . 14 10 11 6 Treads 23 | . 1 32 22 21 Leg 5 | . 26 . . . Wheel 1 | . . . 4 9 Flight 1 | . . . 5 3 Device 4 | . 9 3 . 9 Storage 11 | . 14 11 11 9 Processor 9 | . 2 12 11 9 Protection 5 | . . 6 11 5 Energy Gun 4 | . 8 2 1 7 Ballistic Gun 15 | . 19 16 14 4 Impact Weapon 2 | . . 1 6 5 Naked Turns . | . . . . . Heaviest Build 39 | 13 28 38 34 39 Greatest Support 60 | 20 40 60 60 60 Greatest Overweight (x) 3 | . 1 . 2 3 Average Overweight (x) . | . . . . . Largest Inventory Capacity 15 | 8 15 15 15 15 Average Capacity 13 | 8 10 15 15 15 Most Carried 15 | 6 13 15 15 15 Average Carried 13 | 6 8 14 14 13 Final Capacity 15 | 8 15 15 15 15 Final Carried 15 | 6 12 15 15 15 Class Distribution -------------------- 72% | Mutant 27% | Scavenger-Mutant Dominant Class ---------------- Mutant | -10/Materials Mutant | -9/Materials Mutant | -9/Mines Scavenger-Mutant | -8/Materials Resources | -11 -10 -9 -9 -8 ----------- Run | Yrd Mat Mat Min Mat Matter Collected 1676 | 200 240 783 186 267 Remotely 211 | . . 211 . . Salvage Created 2734 | . 458 1230 482 564 Parts 164 | . 30 80 29 25 Haulers Intercepted 6 | . 2 4 . . Recyclers Shooed 3 | . 1 1 1 . Parts Field Recycled . | . . . . . Retrieved Matter . | . . . . . Parts Self-Destructed . | . . . . . Prevented . | . . . . . Kills | -11 -10 -9 -9 -8 ------- Run | Yrd Mat Mat Min Mat Combat Hostiles Destroyed 52 | . 8 21 11 12 Melee 4 | . . . 3 1 Guns 39 | . 8 18 8 5 AOE 8 | . . 3 . 5 Classes Destroyed 12 | . 6 5 . 1 Worker 11 | . 1 6 3 1 Builder 7 | . . 7 . . Tunneler 4 | . 2 . 2 . Hauler 6 | . 2 4 . . Recycler 3 | . . 2 1 . Watcher 4 | . 1 3 . . Swarmer 12 | . 3 6 3 . Grunt 27 | . 5 9 8 5 Brawler 4 | . . 1 . 3 Duelist 1 | . . 1 . . Protector 1 | . . . . 1 Sentry 7 | . . 4 . 3 Best Kill Streak 8 | . 4 6 8 5 Combat Bots Only 5 | . 4 3 4 5 Max Kills in Single Turn 2 | . 1 2 1 2 Gunslinging 1 | . . 1 . . Exploded 2 | . . 1 . 2 Melee 1 | . . . 1 1 Uniques/NPCs Destroyed . | . . . . . Combat | -11 -10 -9 -9 -8 -------- Run | Yrd Mat Mat Min Mat Hostile Shots Fired 322 | . 45 151 37 89 Missed 86 | . 4 45 13 24 Damage Taken 3335 | . 459 1490 224 1162 Core 493 | . 151 192 24 126 Absorbed by Shields 65 | . . . . 65 Core Remaining (%) 61 | 100 39 . 46 . Volleys Fired 229 | . 57 100 24 48 Largest 2 | . 2 2 2 2 Hottest 118 | . 70 118 46 99 Shots Fired 398 | . 114 169 42 73 Gun 371 | . 114 151 42 64 Cannon 5 | . . 5 . . Launcher 22 | . . 13 . 9 Special . | . . . . . Kinetic 285 | . 86 124 42 33 Thermal 91 | . 28 32 . 31 Explosive 19 | . . 13 . 6 Electromagnetic 3 | . . . . 3 Robot Hit Streak 14 | . 7 11 11 14 Robot Miss Streak 6 | . 5 6 3 4 Penetration Max . | . . . . . Secondary Targets 4 | . 1 3 . . Max Gunslinging Chain 1 | . 1 1 . . Shots Hit Robots 273 | . 78 111 39 45 Core Hits 139 | . 29 63 22 25 Critical Kills 2 | . . 2 . . Critical Parts Destroyed 1 | . . . 1 . Critical Strikes 3 | . . 2 1 . Destroy 2 | . . 2 . . Smash 1 | . . . 1 . Melee Attacks 50 | . 4 12 18 16 Impact 46 | . . 12 18 16 Slashing . | . . . . . Piercing . | . . . . . Sneak Attacks 9 | . 4 4 1 . Combat Hostiles . | . . . . . Follow-up Attacks . | . . . . . Damage Inflicted 5112 | . 668 2337 794 1313 Guns 3003 | . 668 1379 495 461 Cannons 42 | . . 42 . . Explosions 1062 | . . 599 . 463 Melee 1005 | . . 317 299 389 Ramming . | . . . . . Kinetic 2290 | . 480 1120 495 195 Thermal 755 | . 188 301 . 266 Explosive 894 | . . 599 . 295 Electromagnetic 168 | . . . . 168 Impact 1005 | . . 317 299 389 Slashing . | . . . . . Piercing . | . . . . . Highest Corruption 4 | . 2 . . 4 Average Corruption 2 | . 2 . . 3 Corruption Purged . | . . . . . Corruption Blocked . | . . . . . Effects 8 | . 5 . . 3 Message Errors 1 | . 1 . . . Matter Fused 2 | . . . . 2 Heat Flow Errors 1 | . 1 . . . Energy Discharges 1 | . 1 . . . Data Loss (major) 2 | . 1 . . 1 Alerts 1 | . 1 . . . Overload Shots . | . . . . . Overflow Damage 311 | . . 163 104 44 Projectiles 27 | . . 27 . . Explosions 25 | . . 2 . 23 Melee 259 | . . 134 104 21 Knockbacks 7 | . . 4 3 . Impact 6 | . . 3 3 . Kinetic . | . . . . . Secondary 1 | . . 1 . . Self-Inflicted Damage 349 | . . 165 . 184 Shots 14 | . . 7 . 7 Rammed . | . . . . . Targets Rammed . | . . . . . Kicked . | . . . . . Crushed . | . . . . . Highest Temperature 249 | . 249 137 1 177 Average Temperature 53 | . 54 41 1 73 Received Heat Transfer 1167 | . 219 441 72 435 Effects 1 | . 1 . . . Energy Bleed 1 | . 1 . . . Siege Activations . | . . . . . Robots Corrupted . | . . . . . Combat Hostiles . | . . . . . Parts Fried 4 | . . 4 . . Impact Corruptions 11 | . . 7 3 1 Robots Melted . | . . . . . Combat Hostiles . | . . . . . Parts Melted 1 | . . 1 . . Heat Transferred 1819 | . 496 740 . 583 Parts Sabotaged . | . . . . . Parts Stolen . | . . . . . Parts Stripped . | . . . . . Power Chain Reactions . | . . . . . Alert | -11 -10 -9 -9 -8 ------- Run | Yrd Mat Mat Min Mat Peak Influence 494 | . 198 361 290 494 Initial 105 | . . 55 105 74 Average 186 | . 87 207 164 310 Maximum Alert Level 2 | . . 1 1 2 Low Security (%) 52 | 100 100 32 75 26 Level 1 42 | . . 67 24 35 Level 2 4 | . . . . 38 Level 3 . | . . . . . Level 4 . | . . . . . Level 5 . | . . . . . High Security . | . . . . . Max Security . | . . . . . Squads Dispatched 9 | . 1 3 . 5 Investigation 2 | . . 1 . 1 Extermination . | . . . . . Reinforcement 3 | . 1 2 . . Assault 1 | . . . . 1 Garrison 3 | . . . . 3 Intercept . | . . . . . Searches Triggered . | . . . . . Construction Impeded 2 | . . 2 . . Haulers Reinforced . | . . . . . Active Scanning Responses . | . . . . . Cargo Convoy Interrupts . | . . . . . Stealth | -11 -10 -9 -9 -8 --------- Run | Yrd Mat Mat Min Mat Distress Signals 3 | . . 2 1 . Communications Jammed . | . . . . . Distress Signals . | . . . . . Times Spotted 82 | . 17 35 13 17 Peak Tracking Total 6 | . 6 4 3 6 Tactical Retreats 2 | . . 1 1 . Traps | -11 -10 -9 -9 -8 ------- Run | Yrd Mat Mat Min Mat Traps Triggered 6 | . 3 3 . . Indirectly . | . . . . . Trap Hack Attempts . | . . . . . Triggered . | . . . . . Disarmed . | . . . . . Reprogrammed . | . . . . . Reused . | . . . . . Traps Extracted . | . . . . . Installed . | . . . . . Triggered . | . . . . . Machines | -11 -10 -9 -9 -8 ---------- Run | Yrd Mat Mat Min Mat Machines Disabled 3 | . . . . 3 Max in Single Turn 2 | . . . . 2 Garrison Access 1 | . . . . 1 Machines Repaired . | . . . . . Machines Dismantled . | . . . . . Machines Sabotaged . | . . . . . Overloaded Fab Kills . | . . . . . Hacking | -11 -10 -9 -9 -8 --------- Run | Yrd Mat Mat Min Mat Machines Accessed 14 | . 6 6 1 1 Terminals 12 | . 6 5 1 . Fabricators . | . . . . . Repair Stations . | . . . . . Recycling Units . | . . . . . Scanalyzers 1 | . . 1 . . Garrison Access 1 | . . . . 1 Total Hacks 30 | . 11 14 2 3 Successful 18 | . 5 12 1 . Failed 12 | . 6 2 1 3 Catastrophic . | . . . . . Database Lockouts . | . . . . . Manual 10 | . 7 2 1 . Terminals 24 | . 11 11 2 . Fabricators . | . . . . . Repair Stations . | . . . . . Recycling Units . | . . . . . Scanalyzers 3 | . . 3 . . Garrison Access 3 | . . . . 3 Terminal Hacks 12 | . 3 8 1 . Robot Analysis 1 | . . 1 . . Prototype ID Bank 1 | . . 1 . . Branch Access Points 1 | . . 1 . . Emergency Access Points 2 | . . 2 . . Terminal Index 1 | . 1 . . . Alert Level 1 | . . 1 . . Locate Traps 2 | . 1 1 . . Hauler Manifests 1 | . . 1 . . Zone Layout 2 | . 1 . 1 . Fabricator Hacks . | . . . . . Repair Station Hacks . | . . . . . Recycling Unit Hacks . | . . . . . Scanalyzer 3 | . . 3 . . Insert Component 2 | . . 2 . . Analyze 1 | . . 1 . . Garrison Access Hacks . | . . . . . Unauthorized Hacks 3 | . 2 1 . . Terminals 3 | . 2 1 . . Track 1 | . . 1 . . Botnet 2 | . 2 . . . Fabricators . | . . . . . Repair Stations . | . . . . . Recycling Units . | . . . . . Scanalyzers . | . . . . . Garrison Access . | . . . . . Data Cores Recovered . | . . . . . Used . | . . . . . Hacking Detections 8 | . 3 3 1 1 Full Trace Events 1 | . . . . 1 Feedback Events . | . . . . . Feedback Blocked . | . . . . . Robot Schematics Acquired . | . . . . . Robots Built . | . . . . . Authchips . | . . . . . Time . | . . . . . Total Robot Build Rating . | . . . . . Part Schematics Acquired 1 | . . 1 . . Parts Built . | . . . . . Authchips . | . . . . . Time . | . . . . . Total Part Build Rating . | . . . . . Parts Repaired . | . . . . . Time . | . . . . . Parts Recycled . | . . . . . Recycled Matter . | . . . . . Retrieved Matter . | . . . . . Retrieved Components . | . . . . . Parts Scanalyzed 1 | . . 1 . . Part Schematics Acquired 1 | . . 1 . . Parts Damaged 1 | . . 1 . . Bothacking | -11 -10 -9 -9 -8 ------------ Run | Yrd Mat Mat Min Mat Used RIF Installer . | . . . . . Robots Hacked 2 | . 2 . . . Non-combat 2 | . 2 . . . Combat . | . . . . . Robot Hacks Applied 4 | . 4 . . . parse_system 2 | . 2 . . . no_distress 2 | . 2 . . . Relay Couplers Released 3 | . . . . 3 Machine Destruction 3 | . . . . 3 Fabnet Peak Effective % . | . . . . . Robots Rewired . | . . . . . Allies Hacked . | . . . . . Hacks Repelled . | . . . . . Allies | -11 -10 -9 -9 -8 -------- Run | Yrd Mat Mat Min Mat Total Allies . | . . . . . Largest Group . | . . . . . Highest-Rated Group . | . . . . . Highest-Rated Ally . | . . . . . Total Orders . | . . . . . Ally Attacks . | . . . . . Total Damage . | . . . . . Kills . | . . . . . Allies Corrupted . | . . . . . Allies Melted . | . . . . . Intel | -11 -10 -9 -9 -8 ------- Run | Yrd Mat Mat Min Mat Robot Analysis Total 1 | . . 1 . . Derelict Logs Recovered . | . . . . . Drone Launches . | . . . . . Drone Recoveries . | . . . . . Exploration | -11 -10 -9 -9 -8 ------------- Run | Yrd Mat Mat Min Mat Turns Passed 3279 | 2 679 1702 535 361 Spaces Moved 1575 | 2 367 829 284 93 Core . | . . . . . Treads 1086 | . 14 829 152 91 Legs 355 | 2 353 . . . Wheels 134 | . . . 132 2 Hover . | . . . . . Flight . | . . . . . Fastest Speed 120 | 120 120 160 120 125 Average Speed 151 | 120 133 160 145 162 Slowest Speed 240 | 120 190 160 240 240 Overloaded Moves . | . . . . . Propulsion Burnouts . | . . . . . Robots Hopped . | . . . . . Cave-ins Triggered . | . . . . . Exploration Rate (%) 42 | 2 70 72 59 8 Regions Visited 4 Branch Regions 1 Pre-discovered Areas . | . . . . . Known Exits Taken 1 | . . 1 . . Unknown Exits Taken 3 | 1 1 . 1 . Scrap Searched . | . . . . . Spaces Dug 4 | . . 4 . . Terrain Destroyed 124 | . . 85 . 39 Melee 4 | . . 4 . . Projectile . | . . . . . AOE 120 | . . 81 . 39 Terrain Rammed . | . . . . . Walls Destroyed . | . . . . . Machines Disabled . | . . . . . Actions | -11 -10 -9 -9 -8 --------- Run | Yrd Mat Mat Min Mat Total 2014 | 1 459 1027 330 197 Wait 15 | . . 6 . 9 Move 1571 | 1 366 828 283 93 Hop . | . . . . . Pick Up 38 | . 9 24 1 4 Fast Attach 29 | . 6 12 1 10 Attach 17 | . 1 8 1 7 Detach 7 | . 1 4 . 2 Swap 25 | . 7 11 2 5 Drop 33 | . 8 22 . 3 Fire 229 | . 57 100 24 48 Melee 50 | . 4 12 18 16 Ram . | . . . . . Kick . | . . . . . Crush . | . . . . . Escape Stasis . | . . . . . Rewire . | . . . . . Trap . | . . . . . Miscellaneous . | . . . . . Route ------- -11/Scrapyard -10/Materials (discovered 2 exits: *Mat / [*Min]) -9/Materials (discovered 2 exits: *Mat / *Min) -9/Mines -8/Materials History --------- Turn | Location | Event 1 | -11/Scrapyard | Discovered new exit (range 1) 3 | -11/Scrapyard | Entered Materials 169 | -10/Materials | Discovered new exit (range 12) 307 | -10/Materials | Build established: Mutant 550 | -10/Materials | Discovered new exit (range 16) 636 | -10/Materials | Core integrity fell below 50% 682 | -10/Materials | Entered another Materials area 682 | -9/Materials | Evolved 2 slots: Propulsion x1, Utility x1 1022 | -9/Materials | Discovered new exit (range 15) 1271 | -9/Materials | Lost 4 parts (3n1w) 1536 | -9/Materials | Build established: Scavenger-Mutant 1786 | -9/Materials | Identified exit to Mines 2090 | -9/Materials | Discovered new exit (range 17) 2227 | -9/Materials | Build established: Mutant 2384 | -9/Materials | Entered Mines 2565 | -9/Mines | Excavation squad dispatched 2565 | -9/Mines | A large section of the Mines collapsed 2615 | -9/Mines | Core integrity fell below 50% 2815 | -9/Mines | Excavation squad dispatched 2872 | -9/Mines | Discovered new exit (range 9) 2919 | -9/Mines | Entered Materials 2919 | -8/Materials | Evolved 2 slots: Propulsion x1, Utility x1 3200 | -8/Materials | Lost 4 parts (1n2u1w) 3280 | -8/Materials | Self-destructed Last Messages --------------- 03257_ I-25 Savior destroyed. 03260_ Lgt. Armor Plating destroyed. 03263_ K-01 Serf collects debris. 03267_ Dropped Arm. Wheel. 03268_ K-01 Serf collects debris. 03268_ Acquired Unknown Wheel. 03268_ Identified Wheel. 03269_ U-05 Engineer lays Concrete. 03271_ K-01 Serf collects debris. 03272_ U-05 Engineer lays Concrete. 03273_ Dropped Adv. EMP Blaster. 03273_ U-05 Engineer lays Concrete. 03274_ K-01 Serf collects debris. 03275_ U-05 Engineer lays Concrete. 03275_ Acquired Hpw. Shotgun. 03276_ U-05 Engineer lays Concrete. 03276_ Imp. Ion Engine destroyed. 03276_ Critical hit (Burn: +37). 03277_ K-01 Serf collects debris. 03278_ U-05 Engineer lays Concrete. Map ----- +----------------------------------------------------+ | ?????????????????????????????????????????????????? | | ?????????????????????????????????????????????????? | | ?????????????????????????????????????????????????? | | ?????????????????????????????????????????????????? | | ?????????????????????????????????????????????????? | | ?????????????????????????????????????????????????? | | ?????????????????????????????????????????????????? | | ?????????????????????????????????????????????????? | | ?????????????????????????????????????????????????? | | ?????????????????????????????????????????????????? | | ?????????????????????????????????????????????????? | | ?????????????????????????????????????????????????? | | ?????????????????????????????????????????????????? | | ????????????????????????????????????+????????????? | | ??????????????????????????????????? #??????????? | | ??????????????????????????????????? ??????????? | | ??????????????????????????????????? ????? ????? | | ??????????????????????????????????? ?????= ????? | | ??????????????????????????????????# #????? "???? | | ??????????????????????????????????# #????# "???? | | ??????????????????????????????????+ +????# ???? | | ??????????????????????????????????# #????# ???? | | ??????????????????????????????????# #????# ???? | | ????????????????????############### #????# #???? | | ????????????????????# [[*%=][ Y% #????# #???? | | ????????????????????# [@= ] g ==u #????# #???? | | ????????????????????# ] =]] w #????# #???? | | ????????????????????+ #????# #???? | | ????????????????????# k #????# #???? | | ????????????????????# ""%% #????# #???? | | ????????????????????# ""%% ###### ##### | | ??????????????????? ""%% # | | ??????????????????### # | | ????????????????????# % | | ????????????????????####+#############+######+#### | | ??????????????????????????????# #?# %*%# | | ??????????????????????????????# ### """% # | | ??????????????????????????????# """ """ ### "[== # | | ??????????????????????????????# """ """ # # """ # | | ??????????????????????????????# """ """ + * # | | ??????????????????????????????# # # =!# | | ??????????????????????????????# ! ## # # | | ??????????????????????????????# "T" ### | | ??????????????????????????????###########?### #### | | ????????????????????????????????????????????###??? | | ?????????????????????????????????????????????????? | | ?????????????????????????????????????????????????? | | ?????????????????????????????????????????????????? | | ?????????????????????????????????????????????????? | | ?????????????????????????????????????????????????? | +----------------------------------------------------+ Best States ------------- Heat Dissipation 31 Energy Generation 14 Energy Capacity 280 Matter Stores 300 Matter Capacity 300 Sight Range 18 Robot Scan Range 15 Terrain Scan Density 10 Armor Coverage 225 Evasion (%) 55 Targeting Accuracy 6 Recoil Reduction 3 Salvage Targeting 1 Item Schematics ----------------- Imp. Terrain Scanner | -9/Materials | Scanalyzed Robot Schematics ------------------ None Fabricated ------------ Nothing Alien Tech Used ----------------- None Achievements -------------- None Challenges ------------ None Game ------ Seed CobblerSwordMegatreads Manual? 0 Play Time 00:31:32 Cumulative 112.9 hours Start 2024.04.02 @ 22:00:13 End 2024.04.02 @ 22:35:07 Sessions 1 Manual Loads 0 Difficulty Rogue Special Mode None Game No. 179 Rogue 175 Adventurer 0 Explorer 4 Win Type - Total 0 Types 0/0/0/0/0/0/0/0/0 Lore% 25 Gallery% 42 Achievement% 33 Wizard Run 0 Options --------- Layout 2 ASCII 0 Keyboard 1 Movement Arrows Keybinds 0 Fullscreen 1 Font 32/SmallcapsGlow Map View 130x44 Zoom Use 0% Tactical HUD 1 Map Filters NONE Filters NONE Steam 1 RUN: 0472a8b4-2abd-41fd-afe1-9943a5cc3fae